bitfinex-derivatives/quotes_ETHF0:USTF0_20250430
["timestamp","ask_amount","ask_price","bid_price","bid_amount"]
[1746050206833,2.74706,1795.6,1795.5,6.54827]
[1746050207847,13.88136,1795.6,1795.5,4.94167]
[1746050209446,18.88136,1795.6,1795.5,0.6202]
[1746050210242,1.11379,1795.4,1795.3,3.2078]
[1746050210436,15.83409,1795.4,1795.3,3.2078]
[1746050210941,17.49559,1795.4,1795.3,3.2078]
[1746050218245,1.11391,1795.2,1795.1,40.8]
[1746050218448,12.24821,1795.2,1795.1,40.8]
[1746050221541,12.24821,1795.2,1795.1,42.3892]
[1746050232849,13.93441,1795.2,1795.1,42.3892]
[1746050235056,13.93441,1795.2,1795.1,43.50317]
[1746050235254,13.93441,1795.2,1795.1,42.3892]
[1746050236972,13.93441,1795.2,1795.1,43.50317]
[1746050238073,13.93441,1795.2,1795.1,42.3892]
[1746050241177,12.24821,1795.2,1795.1,42.3892]
[1746050241376,12.24821,1795.2,1795.1,43.50317]
[1746050241570,12.24821,1795.2,1795.1,42.3892]
[1746050243576,13.99111,1795.2,1795.1,42.3892]
[1746050247682,13.99111,1795.2,1795.1,40.8]
[1746050252690,13.99111,1795.2,1795.1,42.5148]
[1746050253183,1.11397,1795.1,1795.0,3.828]
[1746050253489,19.24147,1795.1,1795.0,3.828]
[1746050254086,1.11403,1795.0,1794.9,3.2078]
[1746050254285,13.96023,1795.0,1794.9,3.2078]
[1746050255085,13.96023,1795.0,1794.9,7.8932]
[1746050255281,13.96023,1795.0,1794.9,9.4747]
[1746050255981,13.96023,1795.0,1794.9,6.2669]
[1746050257087,13.96023,1795.0,1794.9,4.6854]
[1746050257483,13.96023,1795.0,1794.9,3.828]
[1746050258394,1.11416,1794.8,1794.7,16.86255679]
[1746050258585,12.24846,1794.8,1794.7,12.05435679]
[1746050258888,12.24846,1794.8,1794.7,52.85435679]
[1746050259086,13.04466,1794.8,1794.7,56.68235679]
[1746050259387,16.62966,1794.8,1794.7,11.26285679]
[1746050259582,17.45916,1794.8,1794.7,11.26285679]
[1746050260193,17.45916,1794.8,1794.7,3.828]
[1746050260388,17.45916,1794.8,1794.6,7.43485679]
[1746050260389,12.24852,1794.7,1794.6,5.6995881]
[1746050260591,14.07720705,1794.7,1794.6,0.1470868]
[1746050260786,14.07720705,1794.7,1794.5,11.13602396]
[1746050260787,12.24858,1794.6,1794.5,7.92849076]
[1746050261092,12.24858,1794.6,1794.4,12.4980125]
[1746050261093,12.24864,1794.5,1794.4,12.4980125]
[1746050261284,15.83164,1794.5,1794.4,9.9518125]
[1746050261485,20.83164,1794.5,1794.4,7.4226925]
[1746050261989,20.83164,1794.5,1794.4,4.8603025]
[1746050262190,20.83164,1794.5,1794.4,2.3012425]
[1746050262491,26.70764,1794.5,1794.4,2.5e-06]
[1746050262790,12.24871,1794.4,1794.3,16.63486953]
[1746050263002,15.90471262,1794.4,1794.3,12.83391953]
[1746050263188,20.90471262,1794.4,1794.3,11.00703953]
[1746050263388,20.90471262,1794.4,1794.3,9.17527953]
[1746050263685,20.90471262,1794.4,1794.3,6.85760953]
[1746050263890,20.90471262,1794.4,1794.3,5.09075953]
[1746050264086,22.82721262,1794.4,1794.3,1.49820953]
[1746050264291,23.67751262,1794.4,1794.3,1.49820953]
[1746050264495,1.11465,1794.0,1793.9,1.6098]
[1746050264683,15.83195,1794.0,1793.9,1.6098]
[1746050265096,15.83195,1794.0,1793.9,5.4378]
[1746050273004,15.83195,1794.0,1793.9,3.828]
[1746050273302,18.62385,1794.0,1793.9,3.828]
[1746050274106,16.67705,1794.0,1793.9,3.828]
[1746050274404,15.83195,1794.0,1793.9,3.828]
[1746050274600,15.83195,1794.0,1793.9,5.4149]
[1746050274795,7.90741,1794.1,1794.0,1.11465]
[1746050275001,7.90741,1794.1,1794.0,3.51285]
[1746050275203,7.90741,1794.1,1794.0,7.34085]
[1746050275401,6.7928,1794.1,1794.0,12.34085]
[1746050275596,6.7928,1794.1,1794.0,7.34085]
[1746050276008,6.7928,1794.1,1794.0,12.34085]
[1746050276309,3.585,1794.1,1794.0,12.34085]
[1746050276503,1.11447,1794.3,1794.2,1.11453]
[1746050276709,3.585,1794.3,1794.2,1.11453]
[1746050277208,4.69947,1794.3,1794.2,5.80163]
[1746050277409,3.585,1794.3,1794.2,5.80163]
[1746050278509,4.69947,1794.3,1794.2,5.80163]
[1746050279107,4.69947,1794.3,1794.2,3.828]
[1746050279308,4.69947,1794.3,1794.2,4.6963]
[1746050279506,15.83377,1794.3,1794.2,6.4343]
[1746050281006,19.04157,1794.3,1794.2,5.566]
[1746050281205,24.13957148,1794.3,1794.2,3.828]
[1746050281410,24.13957148,1794.3,1794.2,2.66948]
[1746050281707,26.84096199,1794.3,1794.2,8.28e-06]
[1746050282312,1.11465,1794.0,1793.9,1.6207]
[1746050282513,19.04175,1794.0,1793.9,1.6207]
[1746050287611,1.1149,1793.6,1793.5,40.8]
[1746050288110,1.1149,1793.6,1793.5,49.628]
[1746050288305,1.1149,1793.6,1793.5,1.16015]
[1746050288508,2.78796,1793.2,1792.8,1.11536]
[1746050288715,1.1154,1792.8,1792.7,1.11543]
[1746050288907,1.11539,1792.9,1792.7,43.3201]
[1746050289110,1.11534,1792.9,1792.8,1.7254]
[1746050289809,3.2078,1793.2,1792.8,1.7254]
[1746050290004,3.585,1793.4,1793.2,1.11511]
[1746050290213,3.585,1793.4,1792.8,6.7254]
[1746050290214,4.70003,1793.4,1793.3,2.591]
[1746050291114,4.70003,1793.4,1793.3,6.419]
[1746050293110,15.83433,1793.4,1793.3,6.419]
[1746050293612,15.83433,1793.4,1793.3,5.5787]
[1746050293817,16.93153,1793.4,1793.3,5.5787]
[1746050294111,17.02950934,1793.4,1793.3,1.7507]
[1746050294320,1.11521,1793.1,1793.0,3.2078]
[1746050294510,4.72521,1793.1,1793.0,3.2078]
[1746050295115,1.11534,1792.9,1792.8,1.90536]
[1746050295318,1.11534,1792.9,1792.8,5.11316]
[1746050295513,1.11534,1792.9,1792.8,10.11316]
[1746050295714,1.11534,1792.9,1792.8,1.90536]
[1746050296113,3.61,1793.1,1792.8,5.73336]
[1746050296418,1.11534,1792.9,1792.8,5.73336]
[1746050297822,1.11534,1792.9,1792.8,4.618]
[1746050299123,1.11534,1792.9,1792.8,5.7334]
[1746050300023,1.11534,1792.9,1792.8,4.618]
[1746050300721,1.11534,1792.9,1792.8,6.5435]
[1746050301112,1.11534,1792.9,1792.8,5.4281]
[1746050301317,1.11534,1792.9,1792.8,6.5435]
[1746050307228,1.11534,1792.9,1792.8,8.2193]
[1746050312334,1.11006863,1792.9,1792.8,8.2193]
[1746050314537,1.11534,1793.0,1792.9,1.11531]
[1746050314730,12.24964,1793.0,1792.9,2.72341]
[1746050315132,12.24964,1793.0,1792.9,6.55141]
[1746050316435,12.24964,1793.0,1792.9,5.4361]
[1746050318133,23.12564,1793.0,1792.9,3.828]
[1746050318338,1.11565,1792.4,1792.3,6.86978]
[1746050318527,12.24995,1792.4,1792.3,5.7541]
[1746050318733,12.24995,1792.4,1792.3,1.7364]
[1746050319336,12.24995,1792.4,1792.3,5.5644]
[1746050321235,12.24995,1792.4,1792.3,6.3868]
[1746050322043,12.24995,1792.4,1792.3,5.5644]
[1746050322338,17.37105,1792.4,1792.3,5.5644]
[1746050323537,17.82193444,1792.4,1792.3,5.5644]
[1746050323932,17.82193444,1792.4,1792.3,3.828]
[1746050324237,17.82193444,1792.4,1792.0,5.5456]
[1746050324238,1.11584,1792.1,1792.0,5.5456]
[1746050324439,12.25014,1792.1,1792.0,5.5456]
[1746050324639,1.11584,1792.1,1792.0,5.5456]
[1746050325539,12.25014,1792.1,1792.0,5.5456]
[1746050327337,13.34944,1792.1,1792.0,5.5456]
[1746050329941,12.25014,1792.1,1792.0,5.5456]
[1746050330540,13.35024,1792.1,1792.0,5.5456]
[1746050330740,14.17684,1792.1,1792.0,5.5456]
[1746050331643,19.17684,1792.1,1792.0,3.828]
[1746050331843,19.17684,1792.1,1792.0,0.57267186]
[1746050331844,22.8958311,1792.1,1792.0,0.57267186]
[1746050332040,22.79784,1792.1,1792.0,0.57267186]
[1746050332241,22.89583055,1792.1,1792.0,0.57267186]
[1746050332649,12.34813055,1792.1,1792.0,0.57267186]
[1746050332850,15.87114,1792.1,1792.0,0.57267186]
[1746050333643,15.87114,1792.1,1792.0,3.95347186]
[1746050333951,15.87114,1792.1,1792.0,3.14537186]
[1746050337844,14.7553,1792.1,1792.0,3.14537186]
[1746050338044,4.73679,1792.2,1792.1,1.11582]
[1746050338250,69.99975,1792.3,1792.2,1.11577]
[1746050338546,15.87105,1792.3,1792.2,1.11577]
[1746050338743,15.87105,1792.3,1792.2,2.79057]
[1746050339151,15.87105,1792.3,1792.2,6.61857]
[1746050339650,3.621,1792.3,1792.2,6.61857]
[1746050340145,1.11571,1792.3,1792.2,6.61857]
[1746050340449,3.621,1792.4,1792.3,1.11568]
[1746050340654,4.73666,1792.4,1792.3,2.79048]
[1746050341144,15.87096,1792.4,1792.3,6.61851]
[1746050341345,15.87096,1792.4,1792.3,5.5028]
[1746050342137,15.87096,1792.4,1792.3,6.61851]
[1746050342342,15.87096,1792.4,1792.3,5.5028]
[1746050343152,19.07876,1792.4,1792.3,5.5028]
[1746050344446,19.07876,1792.4,1792.3,3.828]
[1746050344647,19.93126,1792.4,1792.3,3.828]
[1746050345154,1.11571,1792.3,1792.2,1.5832]
[1746050345652,12.25001,1792.3,1792.2,1.5832]
[1746050346351,12.25001,1792.3,1792.2,5.4112]
[1746050346946,12.34800402,1792.3,1792.2,5.4112]
[1746050347244,12.25001,1792.3,1792.2,1.5832]
[1746050347547,12.3479972,1792.3,1792.2,1.5832]
[1746050347851,12.25001,1792.3,1792.2,1.5832]
[1746050348251,12.25001,1792.3,1792.2,5.4112]
[1746050350243,12.25001,1792.3,1792.2,3.828]
[1746050351659,1.11571,1792.3,1792.2,3.828]
[1746050353953,3.2078,1792.4,1792.2,3.828]
[1746050354162,3.627,1792.5,1792.4,1.11565]
[1746050354659,3.627,1792.5,1792.4,41.91565]
[1746050355159,4.74259,1792.5,1792.4,45.74365]
[1746050355356,3.627,1792.5,1792.4,45.74365]
[1746050355559,4.74259,1792.5,1792.4,45.74365]
[1746050355759,3.627,1792.5,1792.4,45.74365]
[1746050355962,4.74259,1792.5,1792.4,45.74365]
[1746050356163,4.74247,1792.7,1792.6,1.11553]
[1746050356556,6.8348,1792.8,1792.4,50.62481]
[1746050356862,7.95025,1792.8,1792.7,1.11546]
[1746050357055,1.11551,1792.7,1792.6,1.11549]
[1746050357753,7.95024,1792.8,1792.7,1.11546]
[1746050358158,7.95024,1792.8,1792.7,4.94346]
[1746050358557,3.2078,1792.8,1792.7,4.94346]
[1746050358966,3.627,1792.9,1792.8,1.1154]
[1746050359165,1.11534,1792.9,1792.8,1.1154]
[1746050360165,1.11534,1792.9,1792.8,4.9434]
[1746050360362,3.627,1793.0,1792.9,1.11534]
[1746050360667,4.74228,1793.0,1792.9,1.11534]
[1746050360857,3.627,1793.0,1792.9,4.32314]
[1746050361360,1.11511,1793.3,1793.2,1.11509]
[1746050361567,13.97718292,1793.4,1793.3,1.11509]
[1746050361756,12.86213292,1793.4,1793.3,1.11509]
[1746050362368,12.86213292,1793.4,1793.3,4.94309]
[1746050363367,9.23613292,1793.4,1793.3,4.94309]
[1746050363668,3.626,1793.5,1793.4,1.11503]
[1746050364266,3.626,1793.5,1793.4,4.94303]
[1746050365266,3.2078,1793.7,1793.6,1.1149]
[1746050365469,6.8338,1793.7,1793.6,1.1149]
[1746050366862,13.55863292,1794.0,1793.6,1.1149]
[1746050367067,10.35078292,1794.0,1793.9,1.11472]
[1746050367268,3.625,1794.0,1793.9,1.11472]
[1746050367471,15.87395,1794.0,1793.9,41.91472]
[1746050368269,15.87395,1794.0,1793.9,45.74272]
[1746050368570,14.7593,1794.0,1793.9,45.74272]
[1746050369870,15.87395,1794.0,1793.9,3.828]
[1746050370265,1.11477,1793.9,1793.7,1.11479]
[1746050370471,11.1343,1793.8,1793.7,41.91479]
[1746050370770,12.24908,1793.8,1793.7,41.91479]
[1746050370972,1.11478,1793.8,1793.7,41.91479]
[1746050371172,1.11478,1793.8,1793.7,45.74279]
[1746050371469,11.1343,1793.8,1793.7,45.74279]
[1746050371671,12.24908,1793.8,1793.7,45.74279]
[1746050371871,12.24908,1793.8,1793.7,4.94279]
[1746050372071,12.24908,1793.8,1793.7,1.11479]
[1746050372872,1.11484,1793.7,1793.6,45.12266]
[1746050373073,11.1343,1793.7,1793.6,45.12266]
[1746050373277,1.11483,1793.8,1793.6,45.12266]
[1746050373573,11.1343,1793.7,1793.6,45.12266]
[1746050373869,12.24914,1793.7,1793.6,45.12266]
[1746050374075,1.11482,1793.8,1793.7,1.11482]
[1746050374668,12.24912,1793.8,1793.7,1.11482]
[1746050375574,1.11484,1793.7,1793.6,45.12265]
[1746050375774,12.24914,1793.7,1793.6,45.12265]
[1746050376078,1.11484,1793.7,1793.6,45.12265]
[1746050379081,1.11483,1793.8,1793.7,1.1148]
[1746050380073,12.24913,1793.8,1793.7,4.9428]
[1746050383382,11.1343,1793.8,1793.7,4.9428]
[1746050383785,12.24908,1793.8,1793.7,4.9428]
[1746050383987,11.1343,1793.8,1793.7,4.9428]
[1746050384489,12.24908,1793.8,1793.7,4.9428]
[1746050385687,12.24908,1793.8,1793.7,3.828]
[1746050385885,15.45688,1793.8,1793.7,3.828]
[1746050386081,12.24908,1793.8,1793.7,3.828]
[1746050386388,12.24908,1793.8,1793.7,44.628]
[1746050386586,12.24908,1793.8,1793.7,3.828]
[1746050391085,12.24908,1793.8,1793.6,40.8]
[1746050391289,12.24914,1793.7,1793.6,40.8]
[1746050391790,1.1149,1793.6,1793.5,1.11492]
[1746050391990,12.2492,1793.6,1793.5,1.11492]
[1746050392292,12.2492,1793.6,1793.5,45.74292]
[1746050393384,15.8562,1793.6,1793.5,44.628]
[1746050393590,15.8562,1793.6,1793.5,3.828]
[1746050393785,19.064,1793.6,1793.5,3.828]
[1746050394089,1.11503,1793.4,1793.3,40.8]
[1746050394297,12.24933,1793.4,1793.3,44.1782]
[1746050394589,1.11503,1793.4,1793.3,44.1782]
[1746050394989,12.24933,1793.4,1793.3,3.3782]
[1746050395184,12.24933,1793.4,1793.3,7.2062]
[1746050395588,12.24933,1793.4,1793.3,8.32129]
[1746050397393,12.24933,1793.4,1793.3,7.2062]
[1746050399093,12.24933,1793.4,1793.3,3.3782]
[1746050401391,3.2078,1793.8,1793.4,2.78754]
[1746050401596,14.7423,1793.7,1793.6,1.1149]
[1746050402087,14.7423,1793.7,1793.2,3.2078]
[1746050402387,4.3227,1793.6,1793.5,3.828]
[1746050402590,1.1149,1793.6,1793.5,3.828]
[1746050402796,1.1149,1793.6,1793.5,4.94295]
[1746050402985,1.1149,1793.6,1793.5,3.828]
[1746050403185,12.2492,1793.6,1793.5,3.828]
[1746050404095,1.11506,1793.4,1793.2,1.11512]
[1746050404489,2.7873,1793.6,1793.2,1.11512]
[1746050404691,1.11509,1793.3,1793.2,1.11512]
[1746050405094,1.11521,1793.1,1793.0,7.0358]
[1746050405293,15.85751,1793.1,1793.0,3.828]
[1746050406187,1.11534,1792.9,1792.8,7.37323109]
[1746050406396,12.24964,1792.9,1792.8,7.37323109]
[1746050406794,1.1154,1792.8,1792.7,40.8]
[1746050407092,12.2497,1792.8,1792.7,40.8]
[1746050407291,12.2497,1792.8,1792.7,44.628]
[1746050407490,12.2497,1792.8,1792.7,45.74346]
[1746050407692,3.608,1793.0,1792.9,1.11534]
[1746050408092,3.608,1793.0,1792.9,4.94334]
[1746050408390,4.32285,1793.4,1793.0,2.78819]
[1746050408597,1.11499,1793.5,1793.4,1.11498]
[1746050408791,12.24922,1793.6,1793.5,1.11497]
[1746050408997,10.35102292,1793.7,1793.6,1.1149]
[1746050409302,21.48532292,1793.7,1793.6,4.3227]
[1746050409597,12.24919,1793.7,1793.6,4.3227]
[1746050409790,1.11489,1793.7,1793.6,1.1149]
[1746050410397,1.1149,1793.6,1793.5,45.7429]
[1746050410697,1.11473,1793.9,1793.8,1.11473]
[1746050410996,12.84413292,1794.0,1793.9,1.11472]
[1746050411588,9.23613292,1794.0,1793.9,1.11472]
[1746050411797,9.23613292,1794.0,1793.9,6.11472]
[1746050412194,9.23613292,1794.0,1793.9,9.94272]
[1746050413296,11.08335951,1794.6,1794.5,1.11434]
[1746050413496,11.1343,1794.6,1794.5,1.11434]
[1746050413896,9.25944243,1794.7,1794.6,1.11428]
[1746050414500,9.25944243,1794.7,1794.6,4.32208]
[1746050414699,9.25944243,1794.7,1794.6,9.32208]
[1746050415798,9.25944243,1794.7,1794.6,50.12208]
[1746050417200,5.80988535,1794.7,1794.6,50.12208]
[1746050417389,6.8148,1795.3,1794.8,2.78526]
[1746050417591,1.11392,1795.2,1795.1,1.11391]
[1746050417787,7.92869,1795.3,1795.2,1.11391]
[1746050417998,1.11382,1795.4,1795.3,1.11385]
[1746050418198,3.2078,1795.5,1795.1,3.2078]
[1746050418399,11.1343,1795.2,1795.1,4.32176]
[1746050418799,4.32156,1795.5,1795.1,3.2078]
[1746050419101,11.1343,1795.3,1795.2,1.11391]
[1746050420104,1.11379,1795.4,1795.2,1.11386]
[1746050420300,11.1343,1795.3,1795.2,1.11386]
[1746050420491,11.1343,1795.3,1795.1,3.2078]
[1746050420695,1.11382,1795.4,1795.2,1.11389]
[1746050420896,11.1343,1795.3,1795.2,1.11389]
[1746050421307,12.24817,1795.3,1795.1,4.32173]
[1746050421505,12.24817,1795.3,1795.2,1.5879]
[1746050422399,15.87617,1795.3,1795.2,1.5879]
[1746050423099,19.70417,1795.3,1795.2,1.5879]
[1746050423599,1.11403,1795.0,1794.9,3.2078]
[1746050423799,12.24833,1795.0,1794.9,3.2078]
[1746050423995,1.1141,1794.9,1794.8,0.9902]
[1746050424205,12.2484,1794.9,1794.8,0.9902]
[1746050424392,1.1141,1794.9,1794.8,0.9902]
[1746050424597,1.1141,1794.9,1794.8,4.198]
[1746050424799,1.1141,1794.9,1794.8,3.2078]
[1746050425205,12.2484,1794.9,1794.8,3.2078]
[1746050426305,1.11416,1794.8,1794.7,1.7299]
[1746050426504,12.24846,1794.8,1794.7,1.7299]
[1746050426808,1.11416,1794.8,1794.7,1.7299]
[1746050428194,12.24846,1794.8,1794.7,5.5579]
[1746050428802,19.36466,1794.8,1794.7,3.828]
[1746050429205,1.11422,1794.7,1794.6,40.8]
[1746050429403,1.11422,1794.7,1794.5,3.2078]
[1746050429404,1.11428,1794.6,1794.5,3.2078]
[1746050429607,12.24858,1794.6,1794.5,4.8804]
[1746050429807,13.34818,1794.6,1794.5,4.8804]
[1746050430010,11.1343,1794.6,1794.5,46.79474]
[1746050430205,11.1343,1794.6,1794.5,50.62274]
[1746050430511,12.24858,1794.6,1794.5,50.62274]
[1746050431306,12.24858,1794.6,1794.5,47.41494]
[1746050431608,12.24858,1794.6,1794.5,46.3006]
[1746050431817,13.34818,1794.6,1794.5,46.3006]
[1746050432206,13.34818,1794.6,1794.5,42.4726]
[1746050433813,11.1343,1794.6,1794.5,43.58694]
[1746050434014,12.24858,1794.6,1794.5,43.58694]
[1746050434212,12.24858,1794.6,1794.5,47.41494]
[1746050434915,1.1142,1794.8,1794.7,1.11415]
[1746050435317,12.2485,1794.8,1794.7,1.11415]
[1746050435518,12.2485,1794.8,1794.7,2.69805]
[1746050436318,1.1142,1794.8,1794.7,2.69805]
[1746050436617,4.74213,1794.9,1794.8,1.11416]
[1746050436816,1.11416,1794.8,1794.7,2.5493]
[1746050437019,1.11416,1794.8,1794.7,3.66346]
[1746050437214,1.11416,1794.8,1794.7,7.49146]
[1746050437513,1.11403,1795.1,1795.0,1.11403]
[1746050437718,1.11389,1795.3,1795.2,1.11385]
[1746050437912,3.2078,1795.4,1795.2,1.11385]
[1746050438111,3.2078,1795.4,1795.3,2.72325]
[1746050438112,7.94959,1795.4,1795.3,2.72325]
[1746050438311,15.45589,1795.4,1795.3,2.72325]
[1746050438514,3.2078,1795.4,1795.3,2.72325]
[1746050438917,3.628,1795.5,1795.4,1.11379]
[1746050439220,14.7623,1795.5,1795.4,2.72319]
[1746050439516,3.628,1795.5,1795.4,2.72319]
[1746050439715,1.1137,1795.6,1795.5,1.11372]
[1746050440113,11.1343,1795.6,1795.5,1.11372]
[1746050440618,4.74065,1795.7,1795.6,1.11366]
[1746050440818,15.87495,1795.7,1795.6,1.11366]
[1746050441320,4.74065,1795.7,1795.6,1.11366]
[1746050442321,3.627,1795.7,1795.6,1.11366]
[1746050443010,4.32132,1795.9,1795.5,2.78422]
[1746050443220,4.32132,1795.9,1795.8,1.11354]
[1746050443613,4.32132,1795.9,1795.8,41.91354]
[1746050444515,4.32132,1795.9,1795.8,40.8]
[1746050444923,15.45562,1795.9,1795.8,40.8]
[1746050445221,22.35992,1795.9,1795.8,40.8]
[1746050445618,1.1136,1795.7,1795.6,1.7326]
[1746050445827,12.2479,1795.7,1795.6,1.7326]
[1746050446121,16.0759,1795.7,1795.6,42.5326]
[1746050446325,2.78419,1795.6,1795.1,3.2078]
[1746050446622,1.11391,1795.3,1795.2,1.6197]
[1746050446921,1.11391,1795.3,1795.2,43.53361]
[1746050447716,1.11385,1795.3,1795.2,43.53361]
[1746050449525,12.24815,1795.3,1795.2,42.4197]
[1746050449927,12.24815,1795.3,1795.2,1.6197]
[1746050450223,17.17585,1795.3,1795.2,1.6197]
[1746050451726,16.07615,1795.3,1795.2,1.6197]
[1746050452226,4.94185,1795.3,1795.2,2.73361]
[1746050453128,1.11385,1795.3,1795.2,2.73361]
[1746050454337,12.24815,1795.3,1795.2,2.73361]
[1746050454527,12.24815,1795.3,1795.2,1.6197]
[1746050454928,12.24815,1795.3,1795.2,2.73361]
[1746050458028,12.24815,1795.3,1795.2,4.68861]
[1746050458830,1.11385,1795.3,1795.2,4.68861]
[1746050460435,3.2078,1795.8,1795.4,2.78447]
[1746050460632,12.24795,1795.7,1795.6,1.11363]
[1746050460836,12.2479,1795.7,1795.6,1.11363]
[1746050461035,1.1136,1795.7,1795.6,3.14903]
[1746050461237,4.32139,1795.8,1795.7,1.1136]
[1746050461534,4.32139,1795.8,1795.7,2.7356]
[1746050461735,15.45569,1795.8,1795.7,1.622]
[1746050462328,15.45569,1795.8,1795.7,2.7356]
[1746050462944,12.24789,1795.8,1795.7,2.7356]
[1746050463236,12.24789,1795.8,1795.7,1.622]
[1746050464339,6.8338,1796.0,1795.9,1.11348]
[1746050464539,7.94721,1796.0,1795.9,1.11348]
[1746050464736,19.08151,1796.0,1795.9,1.11348]
[1746050465830,15.45551,1796.0,1795.9,1.11348]
[1746050466035,1.11334,1796.2,1796.1,1.11331]
[1746050466541,1.11335,1796.1,1796.0,3.79628]
[1746050466836,11.1343,1796.1,1796.0,2.11748]
[1746050467143,11.1343,1796.1,1796.0,3.16038]
[1746050467441,12.24765,1796.1,1796.0,3.16038]
[1746050467832,3.626,1796.3,1796.0,3.16038]
[1746050467833,1.11334,1796.2,1796.1,1.1133]
[1746050468233,12.24764,1796.2,1796.1,1.1133]
[1746050470341,12.25346601,1796.2,1796.1,1.1133]
[1746050470938,0.00582601,1796.2,1796.1,1.1133]
[1746050471234,0.00582601,1796.2,1796.1,4.3211]
[1746050471439,0.00582601,1796.2,1796.1,50.1211]
[1746050471639,1.11303,1796.7,1796.6,1.11304]
[1746050472141,16.07533,1796.7,1796.6,1.11304]
[1746050472341,16.07533,1796.7,1796.5,0.9807]
[1746050472342,1.11304,1796.6,1796.5,2.09376]
[1746050472542,12.24734,1796.6,1796.5,2.0938]
[1746050473141,16.07534,1796.6,1796.5,2.0938]
[1746050473343,16.07534,1796.6,1796.5,0.9807]
[1746050473640,1.1131,1796.5,1796.4,1.11311]
[1746050473838,12.2474,1796.5,1796.4,1.11311]
[1746050474242,16.0754,1796.5,1796.4,1.11311]
[1746050475142,11.1343,1796.5,1796.4,1.11311]
[1746050475344,12.2474,1796.5,1796.4,1.11311]
[1746050476249,16.0754,1796.5,1796.4,1.11311]
[1746050476438,14.9623,1796.5,1796.4,1.11311]
[1746050477738,21.0754,1796.5,1796.4,1.11311]
[1746050477941,1.1132,1796.4,1796.3,1.11317]
[1746050478244,2.218,1796.4,1796.3,1.11317]
[1746050478435,13.3523,1796.4,1796.3,1.11317]
[1746050480346,2.218,1796.4,1796.3,1.11317]
[1746050480547,13.3523,1796.4,1796.3,1.11317]
[1746050482253,17.1803,1796.4,1796.3,1.11317]
[1746050483148,13.3523,1796.4,1796.3,1.11317]
[1746050484357,12.2475,1796.4,1796.3,1.11317]
[1746050484541,4.73106,1796.6,1796.5,1.1131]
[1746050484949,15.86536,1796.6,1796.5,1.1131]
[1746050485247,19.69336,1796.6,1796.5,1.1131]
[1746050485445,19.69334,1796.6,1796.5,1.1131]
[1746050485645,7.446,1796.6,1796.5,1.1131]
[1746050485845,7.446,1796.6,1796.5,4.3209]
[1746050486143,3.828,1796.6,1796.5,4.3209]
[1746050486748,16.07534,1796.6,1796.5,2.8037]
[1746050487152,14.9623,1796.6,1796.5,2.8037]
[1746050487451,3.828,1796.6,1796.5,2.8037]
[1746050488044,3.828,1796.6,1796.5,6.0115]
[1746050491354,2.54946,1796.6,1796.5,11.0115]
[1746050491550,1.06003,1796.6,1796.5,11.0115]
[1746050491753,3.617,1797.1,1797.0,1.11279]
[1746050491952,4.72973,1797.1,1797.0,1.11279]
[1746050492153,19.69203,1797.1,1797.0,1.11279]
[1746050492550,18.5793,1797.1,1797.0,2.73539]
[1746050493057,19.69203,1797.1,1797.0,2.73539]
[1746050493558,3.828,1797.1,1797.0,2.73539]
[1746050493764,2.14625,1797.1,1797.0,11.35239]
[1746050494158,4.72945,1797.6,1797.5,1.11248]
[1746050494546,15.86375,1797.6,1797.5,1.11248]
[1746050495156,19.69175,1797.6,1797.5,1.11248]
[1746050495355,14.9623,1797.6,1797.5,1.11248]
[1746050495559,16.07472,1797.6,1797.5,2.79538]
[1746050496456,3.828,1797.6,1797.5,6.00318]
[1746050496852,3.828,1797.6,1797.5,11.00318]
[1746050497054,3.828,1797.6,1797.5,51.80318]
[1746050497253,3.828,1797.6,1797.5,46.80318]
[1746050497949,3.828,1797.6,1797.5,51.80318]
[1746050498151,3.828,1797.6,1797.5,46.80318]
[1746050498860,3.828,1797.6,1797.5,51.80318]
[1746050500161,3.828,1797.6,1797.5,46.80318]
[1746050502863,3.828,1797.6,1797.5,51.80318]
[1746050503164,4.72816,1798.1,1797.5,51.80318]
[1746050503165,4.72816,1798.1,1798.0,1.11218]
[1746050503564,15.86246,1798.1,1798.0,1.11218]
[1746050504158,16.07446,1798.1,1798.0,1.11218]
[1746050504565,14.9623,1798.1,1798.0,1.11218]
[1746050504957,16.07441,1798.1,1798.0,1.11218]
[1746050505264,1.11218,1798.0,1797.9,2.76129]
[1746050505467,12.24648,1798.0,1797.9,2.76129]
[1746050506253,16.07448,1798.0,1797.9,2.76129]
[1746050507664,16.07448,1798.0,1797.9,1.6491]
[1746050508255,18.17868,1798.0,1797.9,1.6491]
[1746050508863,18.17868,1798.0,1797.5,43.58122]
[1746050508864,28.05483,1798.0,1797.5,40.8]
[1746050509071,12.24672,1797.6,1797.5,42.4133]
[1746050509866,11.1343,1797.6,1797.5,43.52575]
[1746050510166,2.21557,1797.9,1797.8,1.1123]
[1746050510369,1.11227,1797.9,1797.8,1.1123]
[1746050510560,1.11214,1798.1,1798.0,1.11211]
[1746050510960,11.1343,1798.1,1798.0,4.31998]
[1746050511164,14.9623,1798.1,1798.0,4.31998]
[1746050511356,14.9623,1798.1,1798.0,5.93798]
[1746050512563,16.07441,1798.1,1798.0,2.73018]
[1746050512964,1.11218,1798.0,1797.9,1.11223]
[1746050513163,6.04228,1798.0,1797.9,2.72593]